fUSD/lending_fUSD_20250103
["ID","MTS","AMOUNT","RATE_DAILY","PERIOD"]
[347528368,1735903873357,-533.34,0.00010084,2]
[347528369,1735903873367,-1470.8,0.00010084,2]
[347528370,1735903873378,-820.99,0.00010084,2]
[347528371,1735903873387,-1308.98,0.00010084,2]
[347528372,1735903873397,-500.0,0.00010084,2]
[347528373,1735903873406,-531.16,0.00010084,2]
[347528374,1735903873416,-870.07,0.00010084,2]
[347528375,1735903873425,-500.0,0.00010084,2]
[347528376,1735903873435,-955.16,0.00010084,2]
[347528377,1735903873444,-2096.11,0.00010084,2]
[347528378,1735903873454,-1992.0,0.00010084,2]
[347528379,1735903873463,-1066.78,0.00010084,2]
[347528380,1735903873473,-1194.8,0.00010084,2]
[347528381,1735903873482,-1498.73,0.00010084,2]
[347528382,1735903873492,-500.0,0.00010084,2]
[347528383,1735903873501,-500.0,0.00010084,2]
[347528384,1735903873510,-1403.54,0.00010084,2]
[347528385,1735903873520,-953.21,0.00010084,2]
[347528386,1735903873529,-1003.93,0.00010084,2]
[347528387,1735903873539,-500.0,0.00010084,2]
[347528388,1735903873549,-1239.98,0.00010084,2]
[347528389,1735903873558,-801.59,0.00010084,2]
[347528390,1735903873567,-802.33,0.00010084,2]
[347528391,1735903873576,-4276.72,0.00010084,2]
[347528392,1735903873585,-886.72,0.00010084,2]
[347528393,1735903873595,-1438.69,0.00010084,2]
[347528394,1735903873604,-3850.57,0.00010084,2]
[347528395,1735903873614,-5038.93,0.00010084,2]
[347528396,1735903873623,-2593.99,0.00010084,2]
[347528397,1735903873634,-1284.41,0.00010084,2]
[347528398,1735903873643,-500.0,0.00010084,2]
[347528399,1735903873652,-3257.07,0.00010084,2]
[347528400,1735903873661,-1096.88,0.00010084,2]
[347528401,1735903873671,-500.0,0.00010084,2]
[347528402,1735903873680,-6894.52,0.00010084,2]
[347528403,1735903873689,-500.0,0.00010084,2]
[347528404,1735903873699,-936.58,0.00010084,2]
[347528405,1735903873708,-500.0,0.00010084,2]
[347528406,1735903873718,-3387.43,0.00010084,2]
[347528407,1735903873727,-3284.22,0.00010084,2]
[347528408,1735903873736,-1133.0,0.00010084,2]
[347528409,1735903873745,-917.17,0.00010084,2]
[347528410,1735903873754,-500.0,0.00010084,2]
[347528411,1735903873764,-1261.59,0.00010084,2]
[347528412,1735903873773,-500.0,0.00010084,2]
[347528413,1735903873782,-500.0,0.00010084,2]
[347528414,1735903873791,-702.9,0.00010084,2]
[347528415,1735903873801,-4733.92,0.00010084,2]
[347528416,1735903873810,-3501.61,0.00010084,2]
[347528417,1735903873820,-509.49,0.00010084,2]
[347528418,1735903873829,-588.73,0.00010084,2]
[347528419,1735903873839,-500.0,0.00010085,2]
[347528420,1735903873849,-500.0,0.00010085,2]
[347528421,1735903873858,-3301.88,0.00010085,2]
[347528422,1735903873867,-1679.44,0.00010085,2]
[347528423,1735903873883,-7313.71,0.00010085,2]
[347528424,1735903873893,-9786.66,0.00010085,2]
[347528425,1735903873903,-166.0,0.0001009,2]
[347528426,1735903873912,-272.71,0.00010137,2]
[347528427,1735903873922,-835.12,0.00010137,2]
[347528428,1735903873931,-154.55,0.00010137,2]
[347528429,1735903873940,-1134.27,0.00010192,2]
[347528430,1735903873952,-429.51484354,0.00010344,2]
[347528431,1735903873961,-720.23,0.00010347,2]
[347528432,1735903873970,-500.0,0.00010355,2]
[347528433,1735903873980,-500.0,0.00010355,2]
[347528434,1735903873989,-581.16,0.00010356,2]
[347528435,1735903873998,-1343.21,0.00010356,2]
[347528436,1735903874007,-500.0,0.00010356,2]
[347528437,1735903874017,-500.0,0.00010356,2]
[347528438,1735903874027,-847.24,0.00010356,2]
[347528439,1735903874037,-1416.5,0.00010356,2]
[347528440,1735903874046,-500.0,0.00010356,2]
[347528441,1735903874055,-500.0,0.00010356,2]
[347528442,1735903874065,-1339.06,0.00010356,2]
[347528443,1735903874074,-309.21461397,0.00010356,2]
[347528444,1735903874083,-1342.34,0.00010356,2]
[347528445,1735903874093,-1066.66,0.00010356,2]
[347528446,1735903874102,-822.34,0.00010356,2]
[347528447,1735903874112,-716.38,0.00010356,2]
[347528448,1735903874122,-1257.11,0.00010356,2]
[347528449,1735903874132,-843.53,0.00010356,2]
[347528450,1735903874141,-1247.47,0.00010356,2]
[347528451,1735903874150,-500.0,0.00010356,2]
[347528452,1735903874159,-592.69,0.00010356,2]
[347528453,1735903874168,-500.0,0.00010356,2]
[347528454,1735903874178,-1658.3,0.00010356,2]
[347528455,1735903874187,-500.0,0.00010356,2]
[347528456,1735903874196,-1464.03,0.00010356,2]
[347528457,1735903874205,-500.0,0.00010356,2]
[347528458,1735903874215,-500.0,0.00010356,2]
[347528459,1735903874224,-500.0,0.00010356,2]
[347528460,1735903874233,-1005.11,0.00010356,2]
[347528461,1735903874243,-519.95,0.00010356,2]
[347528462,1735903874252,-500.0,0.00010356,2]
[347528463,1735903874262,-1574.59,0.00010356,2]
[347528464,1735903874271,-500.0,0.00010356,2]
[347528465,1735903874280,-565.43,0.00010356,2]
[347528466,1735903874290,-843.57,0.00010356,2]
[347528467,1735903874299,-1652.0,0.00010356,2]
[347528468,1735903874309,-808.1,0.00010356,2]
[347528469,1735903874319,-629.25,0.00010356,2]
[347528470,1735903874328,-764.88,0.00010356,2]
[347528471,1735903874337,-1091.92,0.00010356,2]
[347528472,1735903874346,-500.0,0.00010356,2]
[347528473,1735903874357,-1803.37,0.00010356,2]
[347528474,1735903874366,-547.2,0.00010356,2]
[347528475,1735903874375,-793.55,0.00010356,2]
[347528476,1735903874388,-1960.24,0.00010356,2]
[347528477,1735903874397,-1098.5,0.00010356,2]
[347528478,1735903874406,-1005.26,0.00010356,2]
[347528479,1735903874415,-2287.89,0.00010356,2]
[347528480,1735903874425,-1376.76,0.00010356,2]
[347528481,1735903874435,-914.74,0.00010356,2]
[347528482,1735903874444,-542.12,0.00010356,2]
[347528483,1735903874453,-942.97,0.00010356,2]
[347528484,1735903874463,-845.27,0.00010356,2]
[347528485,1735903874472,-1785.49,0.00010356,2]
[347528486,1735903874481,-4316.05,0.00010356,2]
[347528487,1735903874490,-500.0,0.00010356,2]
[347528488,1735903874500,-2159.97,0.00010356,2]
[347528489,1735903874509,-736.25,0.00010356,2]
[347528490,1735903874519,-1334.42,0.00010356,2]
[347528491,1735903874528,-1495.62,0.00010356,2]
[347528492,1735903874537,-754.17,0.00010356,2]
[347528493,1735903874546,-500.0,0.00010356,2]
[347528494,1735903874556,-650.62,0.00010356,2]
[347528495,1735903874565,-4164.56,0.00010356,2]
[347528496,1735903874574,-500.0,0.00010356,2]
[347528497,1735903874584,-1625.31,0.00010356,2]
[347528498,1735903874594,-500.0,0.00010356,2]
[347528499,1735903874604,-611.39,0.00010356,2]
[347528500,1735903874613,-500.0,0.00010356,2]
[347528501,1735903874623,-986.21,0.00010356,2]
[347528502,1735903874634,-1298.73,0.00010356,2]
[347528503,1735903874644,-3531.11,0.00010356,2]
[347528504,1735903874653,-1023.42,0.00010356,2]
[347528505,1735903874663,-1089.53,0.00010356,2]
[347528506,1735903874672,-5813.27,0.00010356,2]
[347528507,1735903874682,-2817.31,0.00010356,2]
[347528508,1735903874691,-1045.47,0.00010356,2]
[347528509,1735903874702,-1481.72,0.00010356,2]
[347528510,1735903874711,-3420.76,0.00010356,2]
[347528511,1735903874720,-5258.68,0.00010356,2]
[347528512,1735903874729,-997.31,0.00010356,2]
[347528513,1735903874740,-857.28,0.00010356,2]
[347528514,1735903874751,-10810.93,0.00010356,2]
[347528515,1735903874761,-1042.24,0.00010356,2]
[347528516,1735903874770,-1826.67,0.00010356,2]
[347528517,1735903874779,-1028.72,0.00010356,2]
[347528518,1735903874788,-4944.06,0.00010356,2]
[347528519,1735903874797,-1208.64,0.00010356,2]
[347528520,1735903874806,-4381.19,0.00010356,2]
[347528521,1735903874816,-2263.34,0.00010356,2]
[347528522,1735903874825,-8233.14,0.00010356,2]
[347528523,1735903874834,-1743.67,0.00010356,2]
[347528524,1735903874844,-1356.78,0.00010356,2]
[347528525,1735903874853,-4030.14,0.00010356,2]
[347528526,1735903874862,-1180.61,0.00010356,2]
[347528527,1735903874874,-3155.79,0.00010356,2]
[347528528,1735903874887,-1269.56,0.00010356,2]
[347528529,1735903874896,-4857.77,0.00010356,2]
[347528530,1735903874906,-1773.18,0.00010356,2]
[347528531,1735903874917,-592.74,0.00010356,2]
[347528532,1735903874926,-1267.3,0.00010356,2]
[347528533,1735903874935,-8253.07,0.00010356,2]
[347528534,1735903874944,-500.0,0.00010356,2]
[347528535,1735903874954,-9575.94,0.00010356,2]
[347528536,1735903874964,-10330.45,0.00010356,2]
[347528537,1735903874973,-7775.68,0.00010356,2]
[347528538,1735903874983,-3274.39,0.00010356,2]
[347528539,1735903874992,-1872.61,0.00010356,2]
[347528540,1735903875001,-4887.13,0.00010356,2]
[347528541,1735903875011,-4449.35,0.00010356,2]
[347528542,1735903875021,-3427.99,0.00010356,2]
[347528543,1735903875032,-551.76,0.00010356,2]
[347528544,1735903875041,-2327.98,0.00010356,2]
[347528545,1735903875051,-4961.53,0.00010356,2]
[347528546,1735903875061,-847.8,0.00010356,2]
[347528547,1735903875071,-1585.98,0.00010356,2]
[347528548,1735903875081,-2872.31,0.00010356,2]
[347528549,1735903875091,-1639.91,0.00010356,2]
[347528550,1735903875101,-1877.41,0.00010356,2]
[347528551,1735903875111,-1119.93,0.00010356,2]
[347528552,1735903875120,-500.0,0.00010356,2]
[347528553,1735903875130,-2299.24,0.00010356,2]
[347528554,1735903875139,-2261.75,0.00010356,2]
[347528555,1735903875149,-500.0,0.00010356,2]
[347528556,1735903875158,-500.0,0.00010356,2]
[347528557,1735903875167,-526.47,0.00010356,2]
[347528558,1735903875176,-660.66,0.00010356,2]
[347528559,1735903875186,-2458.11,0.00010356,2]
[347528560,1735903875195,-5361.51,0.00010356,2]
[347528561,1735903875204,-1226.92,0.00010356,2]
[347528562,1735903875213,-1974.28,0.00010356,2]
[347528563,1735903875224,-899.29,0.00010356,2]
[347528564,1735903875233,-10201.99,0.00010356,2]
[347528565,1735903875242,-506.78,0.00010356,2]
[347528566,1735903875251,-1905.76,0.00010356,2]
[347528567,1735903875261,-1476.88,0.00010356,2]
[347528568,1735903875270,-500.0,0.00010357,2]
[347528569,1735903875279,-500.0,0.00010357,2]
[347528570,1735903875288,-786.32,0.00010357,2]
[347528571,1735903875297,-582.76,0.00010357,2]
[347528572,1735903875306,-500.0,0.00010357,2]
[347528573,1735903875316,-741.23,0.00010357,2]
[347528574,1735903875325,-500.0,0.00010357,2]
[347528575,1735903875334,-695.73,0.00010357,2]
[347528576,1735903875344,-649.17,0.00010357,2]
[347528577,1735903875353,-500.0,0.00010357,2]
[347528578,1735903875363,-500.0,0.00010357,2]
[347528579,1735903875446,-500.0,0.00010357,2]
[347528580,1735903875456,-596.04448329,0.00010357,2]
[347528581,1735903875465,-693.77,0.00010357,2]
[347528582,1735903875474,-500.0,0.00010357,2]
[347528583,1735903875483,-500.0,0.00010357,2]
[347528584,1735903875493,-500.0,0.00010357,2]
[347528585,1735903875502,-907.41,0.00010357,2]
[347528586,1735903875511,-878.15,0.00010357,2]
[347528587,1735903875519,-500.0,0.00010357,2]
[347528588,1735903875529,-874.72,0.00010357,2]
[347528589,1735903875538,-500.0,0.00010357,2]
[347528590,1735903875547,-500.0,0.00010357,2]
[347528591,1735903875556,-500.0,0.00010357,2]
[347528592,1735903875565,-500.0,0.00010357,2]
[347528593,1735903875574,-1033.7,0.00010357,2]
[347528594,1735903875583,-628.62,0.00010357,2]
[347528595,1735903875594,-563.93,0.00010357,2]
[347528596,1735903875603,-500.0,0.00010357,2]
[347528597,1735903875612,-500.0,0.00010357,2]
[347528598,1735903875622,-500.0,0.00010357,2]
[347528599,1735903875631,-500.0,0.00010357,2]
[347528600,1735903875641,-500.0,0.00010357,2]
[347528601,1735903875650,-500.0,0.00010357,2]
[347528602,1735903875659,-500.0,0.00010357,2]
[347528603,1735903875668,-500.0,0.00010357,2]
[347528604,1735903875678,-500.0,0.00010357,2]
[347528605,1735903875687,-3393.054164,0.00010357,2]
[347528606,1735903875696,-975.61,0.00010357,2]
[347528607,1735903875707,-500.0,0.00010357,2]
[347528608,1735903875716,-720.4,0.00010357,2]
[347528609,1735903875726,-346.99969894,0.00010357,2]
[347528610,1735903875735,-699.88,0.00010357,2]
[347528611,1735903875745,-500.0,0.00010357,2]
[347528612,1735903875754,-527.2,0.00010357,2]
[347528613,1735903875763,-3577.129262,0.00010357,2]
[347528614,1735903875772,-500.0,0.00010357,2]
[347528615,1735903875782,-657.55,0.00010357,2]
[347528616,1735903875791,-1083.0,0.00010357,2]
[347528617,1735903875800,-500.0,0.00010357,2]
[347528618,1735903875809,-550.96,0.00010357,2]
[347528619,1735903875819,-500.0,0.00010357,2]
[347528620,1735903875829,-500.0,0.00010357,2]
[347528621,1735903875838,-1091.28,0.00010357,2]
[347528622,1735903875847,-500.0,0.00010357,2]
[347528623,1735903875857,-620.43,0.00010357,2]
[347528624,1735903875869,-500.0,0.00010357,2]
[347528625,1735903875883,-500.0,0.00010357,2]
[347528626,1735903875892,-554.52,0.00010357,2]
[347528627,1735903875901,-637.58,0.00010357,2]
[347528628,1735903875912,-1163.66,0.00010357,2]
[347528629,1735903875922,-570.62,0.00010357,2]
[347528630,1735903875931,-500.0,0.00010357,2]
[347528631,1735903875940,-541.23,0.00010357,2]
[347528632,1735903875951,-691.37,0.00010357,2]
[347528633,1735903875962,-500.0,0.00010357,2]
[347528634,1735903875970,-500.0,0.00010357,2]
[347528635,1735903875979,-500.0,0.00010357,2]
[347528636,1735903875989,-500.0,0.00010357,2]
[347528637,1735903875998,-7807.56,0.00010357,2]
[347528638,1735903876009,-500.0,0.00010357,2]
[347528639,1735903876018,-1295.69,0.00010357,2]
[347528640,1735903876029,-1479.98,0.00010357,2]
[347528641,1735903876041,-553.08,0.00010357,2]
[347528642,1735903876050,-500.0,0.00010357,2]
[347528643,1735903876059,-1415.87,0.00010357,2]
[347528644,1735903876068,-568.75,0.00010357,2]
[347528645,1735903876077,-2949.36,0.00010357,2]
[347528646,1735903876086,-500.0,0.00010357,2]
[347528647,1735903876095,-500.0,0.00010357,2]
[347528648,1735903876106,-695.69,0.00010357,2]
[347528649,1735903876115,-500.0,0.00010357,2]
[347528650,1735903876123,-1390.9,0.00010357,2]
[347528651,1735903876136,-636.01,0.00010357,2]
[347528652,1735903876144,-1706.23,0.00010357,2]
[347528653,1735903876154,-573.64,0.00010357,2]
[347528654,1735903876163,-554.27,0.00010357,2]
[347528655,1735903876171,-1278.06,0.00010357,2]
[347528656,1735903876180,-500.0,0.00010357,2]
[347528657,1735903876189,-500.0,0.00010357,2]
[347528658,1735903876199,-500.0,0.00010357,2]
[347528659,1735903876207,-500.0,0.00010357,2]
[347528660,1735903876218,-1783.18,0.00010357,2]
[347528661,1735903876227,-2243.13,0.00010357,2]
[347528662,1735903876236,-500.0,0.00010357,2]
[347528663,1735903876247,-639.25,0.00010357,2]
[347528664,1735903876256,-1198.54,0.00010357,2]
[347528665,1735903876265,-500.0,0.00010357,2]
[347528666,1735903876274,-574.92,0.00010357,2]
[347528667,1735903876283,-5301.03,0.00010357,2]
[347528668,1735903876292,-1571.93,0.00010357,2]
[347528669,1735903876301,-1080.42,0.00010357,2]
[347528670,1735903876310,-819.77,0.00010357,2]
[347528671,1735903876319,-535.54,0.00010357,2]
[347528672,1735903876328,-1596.33,0.00010357,2]
[347528673,1735903876338,-700.38,0.00010357,2]
[347528674,1735903876347,-500.0,0.00010357,2]
[347528675,1735903876356,-3799.63,0.00010357,2]
[347528676,1735903876366,-500.0,0.00010357,2]
[347528677,1735903876375,-500.0,0.00010357,2]
[347528678,1735903876386,-594.8,0.00010357,2]
[347528679,1735903876396,-500.0,0.00010357,2]
[347528680,1735903876405,-980.87,0.00010357,2]
[347528681,1735903876414,-500.0,0.00010357,2]
[347528682,1735903876423,-627.51,0.00010357,2]
[347528683,1735903876432,-1039.78,0.00010357,2]
[347528684,1735903876442,-500.0,0.00010357,2]
[347528685,1735903876451,-1517.42,0.00010357,2]
[347528686,1735903876460,-1294.89,0.00010357,2]
[347528687,1735903876470,-729.16,0.00010357,2]
[347528688,1735903876479,-1378.24,0.00010357,2]
[347528689,1735903876488,-500.0,0.00010357,2]
[347528690,1735903876498,-3001.42,0.00010357,2]
[347528691,1735903876507,-660.04,0.00010357,2]
[347528692,1735903876516,-640.82,0.00010357,2]
[347528693,1735903876525,-534.6,0.00010357,2]
[347528694,1735903876534,-1944.18,0.00010357,2]
[347528695,1735903876544,-580.02,0.00010357,2]
[347528696,1735903876554,-500.0,0.00010357,2]
[347528697,1735903876563,-1037.84,0.00010357,2]
[347528698,1735903876573,-500.0,0.00010357,2]
[347528699,1735903876582,-649.2,0.00010357,2]
[347528700,1735903876591,-1930.89,0.00010357,2]
[347528701,1735903876601,-1286.53,0.00010357,2]
[347528702,1735903876610,-500.0,0.00010357,2]
[347528703,1735903876619,-500.0,0.00010357,2]
[347528704,1735903876630,-500.0,0.00010357,2]
[347528705,1735903876639,-500.0,0.00010357,2]
[347528706,1735903876649,-500.0,0.00010357,2]
[347528707,1735903876660,-725.39,0.00010357,2]
[347528708,1735903876669,-1440.89,0.00010357,2]
[347528709,1735903876679,-500.0,0.00010357,2]
[347528710,1735903876688,-500.0,0.00010357,2]
[347528711,1735903876698,-556.98,0.00010357,2]
[347528712,1735903876707,-500.0,0.00010357,2]
[347528713,1735903876716,-849.97,0.00010357,2]
[347528714,1735903876725,-306.711377,0.00010357,2]
[347528715,1735903876735,-500.0,0.00010357,2]
[347528716,1735903876745,-966.91,0.00010357,2]
[347528717,1735903876755,-651.0,0.00010357,2]
[347528718,1735903876764,-1048.55,0.00010357,2]
[347528719,1735903876773,-619.92,0.00010357,2]
[347528720,1735903876783,-847.98,0.00010357,2]
[347528721,1735903876792,-500.0,0.00010357,2]
[347528722,1735903876801,-3469.98,0.00010357,2]
[347528723,1735903876810,-500.0,0.00010357,2]
[347528724,1735903876820,-1271.83,0.00010357,2]
[347528725,1735903876829,-2272.14,0.00010357,2]
[347528726,1735903876838,-536.38,0.00010357,2]
[347528727,1735903876847,-3364.24,0.00010357,2]
[347528728,1735903876856,-899.72,0.00010357,2]
[347528729,1735903876866,-500.0,0.00010357,2]
[347528730,1735903876879,-1068.63,0.00010357,2]
[347528731,1735903876889,-1252.08,0.00010357,2]
[347528732,1735903876899,-4553.84,0.00010357,2]
[347528733,1735903876908,-1124.83,0.00010357,2]
[347528734,1735903876917,-629.45,0.00010357,2]
[347528735,1735903876926,-1061.06,0.00010357,2]
[347528736,1735903876935,-648.33,0.00010357,2]
[347528737,1735903876944,-1267.36,0.00010357,2]
[347528738,1735903876954,-2680.52,0.00010357,2]
[347528739,1735903876963,-1938.59,0.00010357,2]
[347528740,1735903876972,-715.06,0.00010357,2]
[347528741,1735903876981,-500.0,0.00010357,2]
[347528742,1735903876991,-500.0,0.00010357,2]
[347528743,1735903877000,-907.13,0.00010357,2]
[347528744,1735903877010,-500.0,0.00010357,2]
[347528745,1735903877019,-780.23,0.00010357,2]
[347528746,1735903877029,-500.0,0.00010357,2]
[347528747,1735903877039,-514.25,0.00010357,2]
[347528748,1735903877048,-1179.59,0.00010357,2]
[347528749,1735903877058,-1047.73,0.00010357,2]
[347528750,1735903877068,-1077.73,0.00010357,2]
[347528751,1735903877078,-6127.31,0.00010357,2]
[347528752,1735903877088,-500.0,0.00010357,2]
[347528753,1735903877098,-500.0,0.00010357,2]
[347528754,1735903877108,-512.48,0.00010357,2]
[347528755,1735903877118,-806.61,0.00010357,2]
[347528756,1735903877129,-1175.7,0.00010357,2]
[347528757,1735903877139,-1349.18,0.00010357,2]
[347528758,1735903877148,-4371.78,0.00010357,2]
[347528759,1735903877157,-500.0,0.00010357,2]
[347528760,1735903877167,-500.0,0.00010357,2]
[347528761,1735903877176,-2014.48,0.00010357,2]
[347528762,1735903877186,-575.95,0.00010357,2]
[347528763,1735903877196,-767.03,0.00010357,2]
[347528764,1735903877206,-1279.74,0.00010357,2]
[347528765,1735903877216,-500.0,0.00010357,2]
[347528766,1735903877225,-9955.92,0.00010357,2]
[347528767,1735903877235,-1327.33,0.00010357,2]
[347528768,1735903877245,-1049.06,0.00010357,2]
[347528769,1735903877254,-1309.52,0.00010357,2]
[347528770,1735903877263,-10938.91,0.00010357,2]
[347528771,1735903877273,-500.0,0.00010357,2]
[347528772,1735903877282,-500.0,0.00010357,2]
[347528773,1735903877291,-664.53,0.00010357,2]
[347528774,1735903877301,-1236.06,0.00010357,2]
[347528775,1735903877310,-500.0,0.00010357,2]
[347528776,1735903877319,-2460.33,0.00010357,2]
[347528777,1735903877328,-504.97,0.00010357,2]
[347528778,1735903877338,-1049.3,0.00010357,2]
[347528779,1735903877347,-500.0,0.00010357,2]
[347528780,1735903877356,-500.0,0.00010357,2]
[347528781,1735903877366,-1004.02,0.00010357,2]
[347528782,1735903877375,-500.0,0.00010357,2]
[347528783,1735903877388,-500.0,0.00010357,2]
[347528784,1735903877398,-1789.45,0.00010357,2]
[347528785,1735903877408,-906.72,0.00010357,2]
[347528786,1735903877417,-554.9,0.00010357,2]
[347528787,1735903877426,-553.7,0.00010357,2]
[347528788,1735903877435,-500.0,0.00010357,2]
[347528789,1735903877445,-1337.39,0.00010357,2]
[347528790,1735903877454,-891.73,0.00010357,2]
[347528791,1735903877464,-3848.06,0.00010357,2]
[347528792,1735903877473,-1814.07,0.00010357,2]
[347528793,1735903877483,-697.05,0.00010357,2]
[347528794,1735903877492,-916.41,0.00010357,2]
[347528795,1735903877501,-500.0,0.00010357,2]
[347528796,1735903877510,-500.0,0.00010357,2]
[347528797,1735903877520,-671.77,0.00010357,2]
[347528798,1735903877529,-1400.09,0.00010357,2]
[347528799,1735903877538,-706.51,0.00010357,2]
[347528800,1735903877548,-1126.89,0.00010357,2]
[347528801,1735903877557,-500.0,0.00010357,2]
[347528802,1735903877567,-930.74,0.00010357,2]
[347528803,1735903877576,-601.77,0.00010357,2]
[347528804,1735903877586,-784.61,0.00010357,2]
[347528805,1735903877596,-903.83,0.00010357,2]
[347528806,1735903877606,-2126.45,0.00010357,2]
[347528807,1735903877615,-1232.35,0.00010357,2]
[347528808,1735903877626,-1624.67,0.00010357,2]
[347528809,1735903877637,-629.11,0.00010357,2]
[347528810,1735903877646,-4086.85,0.00010357,2]
[347528811,1735903877655,-1521.21,0.00010357,2]
[347528812,1735903877665,-376.65776375,0.00010357,2]
[347528813,1735903877674,-624.24,0.00010357,2]
[347528814,1735903877683,-1753.83,0.00010357,2]
[347528815,1735903877693,-1708.38,0.00010357,2]
[347528816,1735903877702,-500.0,0.00010357,2]
[347528817,1735903877713,-519.48,0.00010357,2]
[347528818,1735903877723,-4100.57,0.00010357,2]
[347528819,1735903877732,-674.1,0.00010357,2]
[347528820,1735903877742,-500.0,0.00010357,2]
[347528821,1735903877752,-2066.74,0.00010357,2]
[347528822,1735903877761,-500.0,0.00010357,2]
[347528823,1735903877771,-831.55,0.00010357,2]
[347528824,1735903877780,-500.0,0.00010357,2]
[347528825,1735903877789,-500.0,0.00010357,2]
[347528826,1735903877799,-11694.5,0.00010357,2]
[347528827,1735903877808,-4058.85,0.00010357,2]
[347528828,1735903877817,-637.0,0.00010357,2]
[347528829,1735903877827,-620.04,0.00010357,2]
[347528830,1735903877836,-1381.08,0.00010357,2]
[347528831,1735903877846,-1156.88,0.00010357,2]
[347528832,1735903877855,-906.08,0.00010357,2]
[347528833,1735903877864,-500.0,0.00010357,2]
[347528834,1735903877876,-503.36539471,0.00010357,2]
[347528835,1735903877887,-2259.83,0.00010357,2]
[347528836,1735903877896,-500.0,0.00010357,2]
[347528837,1735903877905,-3858.47,0.00010357,2]
[347528838,1735903877914,-500.0,0.00010358,2]
[347528839,1735903877925,-500.0,0.00010358,2]
[347528840,1735903877934,-700.66,0.00010358,2]
[347528841,1735903877943,-500.0,0.00010358,2]
[347528842,1735903877954,-500.0,0.00010358,2]
[347528843,1735903877962,-7939.32,0.00010358,2]
[347528844,1735903877972,-500.0,0.00010358,2]
[347528845,1735903877983,-635.48,0.00010358,2]
[347528846,1735903877992,-500.0,0.00010358,2]
[347528847,1735903878002,-5549.62,0.00010358,2]
[347528848,1735903878011,-557.7,0.00010358,2]
[347528849,1735903878020,-636.0,0.00010358,2]
[347528850,1735903878030,-500.0,0.00010358,2]
[347528851,1735903878039,-520.71,0.00010358,2]
[347528852,1735903878048,-641.32,0.00010358,2]
[347528853,1735903878058,-611.08,0.00010358,2]
[347528854,1735903878067,-500.0,0.00010358,2]
[347528855,1735903878075,-7296.63,0.00010358,2]
[347528856,1735903878085,-500.0,0.00010358,2]
[347528857,1735903878094,-822.03,0.00010358,2]
[347528858,1735903878103,-543.86,0.00010358,2]
[347528859,1735903878112,-718.88,0.00010358,2]
[347528860,1735903878121,-833.36,0.00010358,2]
[347528861,1735903878131,-500.0,0.00010358,2]
[347528862,1735903878140,-4089.89,0.00010358,2]
[347528863,1735903878150,-1230.62,0.00010358,2]
[347528864,1735903878159,-7327.55,0.00010358,2]
[347528865,1735903878169,-554.79626909,0.00010358,2]
[347528866,1735903878179,-500.0,0.00010358,2]
[347528867,1735903878188,-948.85,0.00010358,2]